fUSD/lending_fUSD_20241210
["ID","MTS","AMOUNT","RATE_DAILY","PERIOD"]
[344795146,1733789436886,-500.0,0.00012999,2]
[344795147,1733789436895,-500.0,0.00012999,2]
[344795148,1733789436904,-500.0,0.00012999,2]
[344795149,1733789436917,-500.0,0.00012999,2]
[344795150,1733789436927,-500.0,0.00012999,2]
[344795151,1733789436936,-500.0,0.00012999,2]
[344795152,1733789436945,-500.0,0.00012999,2]
[344795153,1733789436955,-500.0,0.00012999,2]
[344795154,1733789436964,-259.02,0.00012999,2]
[344795155,1733789436978,-500.0,0.00012999,2]
[344795156,1733789436987,-500.0,0.00012999,2]
[344795157,1733789436997,-500.0,0.00012999,2]
[344795158,1733789437006,-500.0,0.00012999,2]
[344795159,1733789437015,-500.0,0.00012999,2]
[344795160,1733789437025,-289.85,0.00012999,2]
[344795161,1733789437034,-587.0,0.00013023,2]
[344795162,1733789437043,-1019.65,0.00013073,2]
[344795163,1733789437056,-200.0,0.00013129,2]
[344795164,1733789437065,-433.0,0.00013137,2]
[344795165,1733789437074,-2751.0,0.0001317,2]
[344795166,1733789437084,-200.0,0.0001326,2]
[344795167,1733789437093,-200.0,0.00013393,2]
[344795168,1733789437103,-1005.9425,0.00013423,2]
[344795169,1733789437113,-2863.948,0.00013423,2]
[344795170,1733789437123,-206.69601008,0.00013423,2]
[344795171,1733789437132,-500.0,0.00013423,2]
[344795172,1733789437141,-500.0,0.00013423,2]
[344795173,1733789437149,-500.0,0.00013423,2]
[344795174,1733789437159,-500.0,0.00013423,2]
[344795175,1733789437172,-500.0,0.00013423,2]
[344795176,1733789437181,-500.0,0.00013423,2]
[344795177,1733789437192,-500.0,0.00013423,2]
[344795178,1733789437202,-500.0,0.00013423,2]
[344795179,1733789437211,-500.0,0.00013423,2]
[344795180,1733789437220,-500.0,0.00013423,2]
[344795181,1733789437229,-500.0,0.00013423,2]
[344795182,1733789437239,-500.0,0.00013423,2]
[344795183,1733789437249,-500.0,0.00013423,2]
[344795184,1733789437258,-500.0,0.00013423,2]
[344795185,1733789437268,-500.0,0.00013423,2]
[344795186,1733789437277,-500.0,0.00013423,2]
[344795187,1733789437287,-579.54,0.00013423,2]
[344795188,1733789437296,-500.0,0.00013423,2]
[344795190,1733789437306,-500.0,0.00013423,2]
[344795192,1733789437315,-611.1705353,0.00013423,2]
[344795193,1733789437324,-500.0,0.00013423,2]
[344795194,1733789437333,-500.0,0.00013423,2]
[344795195,1733789437342,-500.0,0.00013423,2]
[344795196,1733789437351,-500.0,0.00013423,2]
[344795197,1733789437360,-500.0,0.00013423,2]
[344795198,1733789437370,-500.0,0.00013423,2]
[344795199,1733789437379,-500.29377195,0.00013423,2]
[344795200,1733789437389,-500.0,0.00013423,2]
[344795201,1733789437398,-500.0,0.00013423,2]
[344795202,1733789437408,-500.0,0.00013423,2]
[344795203,1733789437423,-641.09,0.00013423,2]
[344795204,1733789437433,-500.0,0.00013423,2]
[344795206,1733789437443,-500.0,0.00013423,2]
[344795207,1733789437453,-171.85,0.00013423,2]
[344795210,1733789437463,-333.30098386,0.00013423,2]
[344795211,1733789437473,-500.0,0.00013423,2]
[344795212,1733789437483,-500.0,0.00013423,2]
[344795213,1733789437493,-500.0,0.00013423,2]
[344795214,1733789437505,-500.0,0.00013423,2]
[344795215,1733789437514,-413.69,0.00013423,2]
[344795216,1733789437525,-259.01069111,0.00013423,2]
[344795217,1733789437535,-500.0,0.00013423,2]
[344795218,1733789437544,-500.0,0.00013423,2]
[344795219,1733789437554,-500.0,0.00013423,2]
[344795220,1733789437564,-500.0,0.00013423,2]
[344795221,1733789437573,-500.0,0.00013423,2]
[344795222,1733789437583,-625.73196438,0.00013423,2]
[344795223,1733789437592,-466.37141203,0.00013423,2]
[344795224,1733789437601,-500.0,0.00013423,2]
[344795225,1733789437611,-500.0,0.00013423,2]
[344795226,1733789437620,-520.34137772,0.00013423,2]
[344795227,1733789437630,-500.0,0.00013423,2]
[344795228,1733789437639,-500.0,0.00013423,2]
[344795229,1733789437649,-500.0,0.00013423,2]
[344795230,1733789437658,-500.0,0.00013423,2]
[344795231,1733789437672,-500.0,0.00013423,2]
[344795232,1733789437682,-500.0,0.00013423,2]
[344795233,1733789437691,-500.0,0.00013423,2]
[344795234,1733789437701,-161.57701037,0.00013423,2]
[344795235,1733789437711,-500.0,0.00013423,2]
[344795236,1733789437720,-592.1,0.00013423,2]
[344795237,1733789437730,-500.0,0.00013423,2]
[344795238,1733789437739,-500.0,0.00013423,2]
[344795239,1733789437749,-311.16,0.00013423,2]
[344795240,1733789437758,-468.23,0.00013423,2]
[344795241,1733789437768,-500.0,0.00013423,2]
[344795242,1733789437777,-500.0,0.00013423,2]
[344795243,1733789437787,-500.0,0.00013423,2]
[344795244,1733789437796,-500.0,0.00013423,2]
[344795245,1733789437805,-500.0,0.00013423,2]
[344795246,1733789437815,-500.0,0.00013423,2]
[344795247,1733789437825,-500.0,0.00013423,2]
[344795249,1733789437834,-500.0,0.00013423,2]
[344795250,1733789437843,-500.0,0.00013423,2]
[344795252,1733789437852,-500.0,0.00013423,2]
[344795254,1733789437865,-500.0,0.00013423,2]
[344795256,1733789437874,-500.0,0.00013423,2]
[344795258,1733789437884,-500.0,0.00013423,2]
[344795260,1733789437893,-500.0,0.00013423,2]
[344795262,1733789437902,-500.0,0.00013423,2]
[344795263,1733789437914,-500.0,0.00013423,2]
[344795264,1733789437925,-598.45,0.00013423,2]
[344795265,1733789437934,-454.03810321,0.00013423,2]
[344795267,1733789437944,-586.9652411,0.00013423,2]
[344795269,1733789437952,-500.0,0.00013423,2]
[344795270,1733789437962,-500.0,0.00013423,2]
[344795272,1733789437972,-4857.96,0.00013424,2]
[344795274,1733789437985,-4857.96,0.00013424,2]
[344795276,1733789437994,-4857.96,0.00013424,2]
[344795278,1733789438004,-4857.96,0.00013424,2]
[344795280,1733789438013,-4857.96,0.00013424,2]
[344795282,1733789438022,-4857.96,0.00013424,2]
[344795284,1733789438031,-4857.96,0.00013424,2]
[344795286,1733789438041,-4857.96,0.00013424,2]
[344795288,1733789438051,-4857.96,0.00013424,2]
[344795290,1733789438060,-4857.96,0.00013424,2]
[344795292,1733789438071,-4857.96,0.00013424,2]
[344795293,1733789438080,-4857.96,0.00013424,2]
[344795294,1733789438090,-4857.96,0.00013424,2]
[344795295,1733789438099,-4857.96,0.00013424,2]
[344795296,1733789438108,-4857.96,0.00013424,2]
[344795297,1733789438118,-4857.96,0.00013424,2]
[344795298,1733789438127,-4857.96,0.00013424,2]
[344795299,1733789438136,-4857.96,0.00013424,2]
[344795300,1733789438146,-4857.96,0.00013424,2]
[344795301,1733789438155,-4857.96,0.00013424,2]
[344795302,1733789438167,-4857.96,0.00013424,2]
[344795303,1733789438177,-4857.96,0.00013424,2]
[344795304,1733789438186,-4857.96,0.00013424,2]
[344795305,1733789438195,-4858.07358298,0.00013424,2]
[344795306,1733789438204,-169.48711978,0.00013527,2]
[344795307,1733789438214,-1000.0,0.00013571,2]
[344795308,1733789438224,-500.0,0.00013597,2]
[344795309,1733789438233,-500.0,0.00013597,2]
[344795310,1733789438243,-500.0,0.00013597,2]
[344795311,1733789438252,-758.94,0.00013597,2]
[344795312,1733789438261,-550.3,0.00013597,2]
[344795313,1733789438270,-435.34,0.00013676,2]
[344795314,1733789438279,-541.84125481,0.00013698,2]
[344795315,1733789438289,-331.72014298,0.00013698,2]
[344795316,1733789438298,-1000.0,0.00013698,10]
[344795317,1733789438307,-10274.88,0.00013698,2]
[344795318,1733789438316,-10274.88,0.00013698,2]
[344795319,1733789438326,-10274.88,0.00013698,2]
[344795320,1733789438335,-500.0,0.00013699,2]
[344795321,1733789438345,-800.0,0.00013699,2]
[344795322,1733789438354,-250.0,0.00013699,2]
[344795323,1733789438365,-296.95,0.00013699,2]
[344795324,1733789438375,-500.0,0.00013699,2]
[344795325,1733789438384,-32541.27,0.00013699,2]
[344795326,1733789438394,-200.0,0.00013699,2]
[344795327,1733789438403,-399.71434777,0.00013699,2]
[344795328,1733789438413,-500.0,0.00013699,2]
[344795329,1733789438423,-159.90021864,0.00013699,2]
[344795330,1733789438433,-500.0,0.00013699,2]
[344795331,1733789438442,-514.39336223,0.00013699,2]
[344795332,1733789438452,-503.87111716,0.00013699,2]
[344795333,1733789438461,-205.94330695,0.00013699,2]
[344795334,1733789438470,-515.45827413,0.00013699,2]
[344795335,1733789438479,-1588.38,0.000137,2]
[344795336,1733789438488,-1588.38,0.000137,2]
[344795337,1733789438497,-1588.38,0.000137,2]
[344795338,1733789438506,-1588.38,0.000137,2]
[344795339,1733789438515,-1588.38,0.000137,2]
[344795340,1733789438524,-1588.38,0.000137,2]
[344795341,1733789438533,-1588.38,0.000137,2]
[344795342,1733789438542,-1588.38,0.000137,2]
[344795343,1733789438552,-1588.38,0.000137,2]
[344795344,1733789438561,-1588.38,0.000137,2]
[344795345,1733789438571,-157.99,0.000138,2]
[344795346,1733789438581,-500.0,0.00014136,2]
[344795347,1733789438591,-1000.0,0.00014247,2]
[344795348,1733789438600,-680.15946017,0.00014247,2]
[344795349,1733789438610,-294.0,0.00014387,2]
[344795350,1733789438620,-200.0,0.00014395,2]
[344795351,1733789438630,-500.0,0.00015,2]
[344795352,1733789438640,-249.73739501,0.00015,15]
[344795353,1733789438649,-350.5,0.00015124,2]
[344795354,1733789438659,-150.0,0.00015124,2]
[344795355,1733789438671,-731.86,0.00015124,2]
[344795356,1733789438680,-300.0,0.00015152,2]
[344795357,1733789438690,-1987.72,0.000152,2]
[344795358,1733789438699,-424.02245394,0.00015248,2]
[344795359,1733789438708,-150.0,0.00015257,2]
[344795360,1733789438718,-13721.0,0.00015257,2]
[344795361,1733789438730,-5966.0,0.00015257,2]
[344795362,1733789438739,-1167.0,0.00015257,2]
[344795363,1733789438750,-1000.0,0.00015267,2]
[344795364,1733789438760,-1019.65,0.00015336,2]
[344795365,1733789438770,-1000.0,0.00015366,2]
[344795366,1733789438779,-500.0,0.00015366,2]
[344795367,1733789438788,-500.0,0.00015366,2]
[344795368,1733789438797,-567.0,0.00015367,2]
[344795369,1733789438808,-1262.0,0.00015367,2]
[344795370,1733789438818,-150.0,0.00015367,2]
[344795371,1733789438828,-559.78278845,0.00015367,2]
[344795372,1733789439176,-746.8,0.00013423,2]
[344795373,1733789439186,-1445.21721155,0.00015367,2]
[344795374,1733789439195,-631.0,0.00015367,2]
[344795375,1733789439205,-1253.0,0.00015367,2]
[344795376,1733789439215,-500.0,0.00015376,2]
[344795377,1733789439225,-500.0,0.00015726,2]
[344795378,1733789439235,-157.99,0.00015771,2]
[344795379,1733789439246,-6119.2,0.00016116,2]
[344795381,1733789439255,-500.0,0.00016436,2]
[344795382,1733789439265,-500.0,0.00016436,2]
[344795383,1733789439274,-500.0,0.00016436,2]
[344795384,1733789439283,-500.0,0.00016436,2]
[344795385,1733789439292,-500.0,0.00016436,2]
[344795386,1733789439302,-500.0,0.00016436,2]
[344795388,1733789439311,-500.0,0.00016436,2]
[344795390,1733789439321,-500.0,0.00016436,2]
[344795391,1733789439331,-500.0,0.00016436,2]
[344795392,1733789439340,-500.0,0.00016436,2]
[344795393,1733789439350,-500.0,0.00016436,2]
[344795394,1733789439359,-500.0,0.00016436,2]
[344795395,1733789439368,-10274.88,0.00016436,2]
[344795396,1733789439378,-1000.0,0.00016437,2]
[344795397,1733789439388,-1000.0,0.00016437,2]
[344795398,1733789439397,-500.0,0.00016437,2]
[344795399,1733789439407,-500.0,0.00016437,2]
[344795401,1733789439419,-500.0,0.00016437,2]
[344795402,1733789439428,-500.0,0.00016437,2]
[344795403,1733789439438,-313.03,0.00016437,2]
[344795404,1733789439448,-561.54,0.00016437,2]
[344795405,1733789439457,-560.78,0.00016437,2]
[344795406,1733789439467,-500.0,0.00016437,2]
[344795407,1733789439477,-500.0,0.00016437,2]
[344795408,1733789439487,-412.19,0.00016437,2]
[344795409,1733789439498,-500.0,0.00016437,2]
[344795410,1733789439508,-264.94,0.00016437,2]
[344795411,1733789439518,-500.0,0.00016437,2]
[344795412,1733789439528,-500.0,0.00016437,2]
[344795413,1733789439539,-267.84253021,0.00016437,2]
[344795414,1733789439550,-500.0,0.00016437,2]
[344795415,1733789439561,-500.0,0.00016437,2]
[344795416,1733789439571,-500.0,0.00016437,2]
[344795417,1733789439581,-604.02,0.00016437,2]
[344795418,1733789439591,-500.0,0.00016437,2]
[344795419,1733789439601,-500.0,0.00016437,2]
[344795420,1733789439612,-447.98,0.00016437,2]
[344795421,1733789439623,-500.0,0.00016437,2]
[344795422,1733789439633,-500.0,0.00016437,2]
[344795423,1733789439642,-289.19,0.00016437,2]
[344795424,1733789439652,-500.0,0.00016437,2]
[344795425,1733789439662,-500.0,0.00016437,2]
[344795426,1733789439676,-249.22,0.00016437,2]
[344795427,1733789439686,-500.0,0.00016437,2]
[344795428,1733789439695,-320.72822842,0.00016437,2]
[344795429,1733789439706,-544.84,0.00016437,2]
[344795430,1733789439716,-500.0,0.00016437,2]
[344795431,1733789439726,-500.0,0.00016437,2]
[344795432,1733789439737,-500.0,0.00016437,2]
[344795433,1733789439747,-500.0,0.00016437,2]
[344795434,1733789439757,-513.53879733,0.00016437,2]
[344795435,1733789439767,-500.0,0.00016437,2]
[344795436,1733789439777,-500.0,0.00016437,2]
[344795437,1733789439788,-500.0,0.00016437,2]
[344795438,1733789439798,-130.30883246,0.00016437,2]
[344795439,1733789439815,-434.66116754,0.00016437,2]
[344795440,1733789439825,-270.93883724,0.00016437,2]
[344795441,1733789439845,-229.06116276,0.00016437,2]
[344795442,1733789439855,-500.0,0.00016437,2]
[344795443,1733789439867,-231.53,0.00016437,2]
[344795444,1733789439877,-227.28,0.00016437,2]
[344795445,1733789439891,-1.49584124,0.00016437,2]
[344795446,1733789439903,-450.653,0.00016437,2]
[344795447,1733789439919,-47.85115876,0.00016437,2]
[344795448,1733789439928,-509.67996737,0.00016437,2]
[344795449,1733789439940,-500.0,0.00016437,2]
[344795450,1733789439949,-500.0,0.00016437,2]
[344795451,1733789439959,-500.0,0.00016437,2]
[344795452,1733789439968,-500.0,0.00016437,2]
[344795453,1733789439982,-464.80769127,0.00016437,2]
[344795454,1733789439991,-500.0,0.00016437,2]
[344795455,1733789440000,-500.0,0.00016437,2]
[344795456,1733789440010,-500.0,0.00016437,2]
[344795457,1733789440020,-500.0,0.00016437,2]
[344795458,1733789440029,-500.0,0.00016437,2]
[344795459,1733789440038,-500.0,0.00016437,2]
[344795460,1733789440049,-500.0,0.00016437,2]
[344795461,1733789440059,-500.0,0.00016437,2]
[344795462,1733789440068,-500.0,0.00016437,2]
[344795463,1733789440078,-583.25,0.00016437,2]
[344795464,1733789440087,-500.0,0.00016437,2]
[344795465,1733789440098,-500.0,0.00016437,2]
[344795466,1733789440108,-500.0,0.00016437,2]
[344795467,1733789440118,-420.96186316,0.00016437,2]
[344795468,1733789440128,-531.3,0.00016437,2]
[344795469,1733789440138,-500.0,0.00016437,2]
[344795470,1733789440148,-500.0,0.00016437,2]
[344795471,1733789440158,-500.0,0.00016437,2]
[344795472,1733789440173,-530.0859498,0.00016437,2]
[344795473,1733789440182,-500.0,0.00016437,2]
[344795474,1733789440191,-500.0,0.00016437,2]
[344795475,1733789440201,-500.0,0.00016437,2]
[344795476,1733789440211,-500.0,0.00016437,2]
[344795477,1733789440221,-500.0,0.00016437,2]
[344795478,1733789440230,-500.0,0.00016437,2]
[344795479,1733789440240,-500.0,0.00016437,2]
[344795480,1733789440249,-500.0,0.00016437,2]
[344795481,1733789440259,-500.0,0.00016437,2]
[344795482,1733789440269,-444.67972824,0.00016437,2]
[344795483,1733789440279,-500.0,0.00016437,2]
[344795484,1733789440288,-462.62,0.00016437,2]
[344795485,1733789440297,-500.0,0.00016437,2]
[344795486,1733789440306,-536.64,0.00016437,2]
[344795487,1733789440316,-571.69,0.00016437,2]
[344795488,1733789440326,-500.0,0.00016437,2]
[344795489,1733789440335,-500.0,0.00016437,2]
[344795490,1733789440345,-500.0,0.00016437,2]
[344795491,1733789440354,-500.0,0.00016437,2]
[344795492,1733789440364,-500.0,0.00016437,2]
[344795493,1733789440374,-500.0,0.00016437,2]
[344795494,1733789440383,-519.32573817,0.00016437,2]
[344795495,1733789440393,-579.73,0.00016437,2]
[344795496,1733789440403,-150.92171925,0.00016437,2]
[344795497,1733789440425,-349.07828075,0.00016437,2]
[344795498,1733789440434,-500.0,0.00016437,2]
[344795499,1733789440444,-500.0,0.00016437,2]
[344795500,1733789440454,-500.0,0.00016437,2]
[344795501,1733789440464,-379.54,0.00016437,2]
[344795502,1733789440474,-500.0,0.00016437,2]
[344795503,1733789440483,-500.0,0.00016437,2]
[344795504,1733789440493,-500.0,0.00016437,2]
[344795505,1733789440508,-500.0,0.00016437,2]
[344795506,1733789440517,-500.0,0.00016437,2]
[344795507,1733789440527,-500.0,0.00016437,2]
[344795508,1733789440537,-500.0,0.00016437,2]
[344795509,1733789440547,-500.0,0.00016437,2]
[344795510,1733789440558,-494.58465449,0.00016437,2]
[344795511,1733789440570,-5.41534551,0.00016437,2]
[344795512,1733789440579,-500.0,0.00016437,2]
[344795513,1733789440590,-257.92163582,0.00016437,2]
[344795514,1733789440600,-500.0,0.00016437,2]
[344795515,1733789440611,-500.0,0.00016437,2]
[344795516,1733789440621,-500.0,0.00016437,2]
[344795517,1733789440632,-556.5567062,0.00016437,2]
[344795518,1733789440642,-500.0,0.00016437,2]
[344795519,1733789440652,-500.0,0.00016437,2]
[344795520,1733789440661,-500.0,0.00016437,2]
[344795521,1733789440675,-500.0,0.00016437,2]
[344795522,1733789440687,-500.0,0.00016437,2]
[344795523,1733789440697,-292.92715751,0.00016437,2]
[344795524,1733789440708,-207.07284249,0.00016437,2]
[344795525,1733789440718,-500.0,0.00016437,2]
[344795526,1733789440728,-500.0,0.00016437,2]
[344795527,1733789440738,-1000.0,0.00016437,2]
[344795528,1733789440748,-403.85,0.00016437,2]
[344795529,1733789440758,-475.35517971,0.00016437,2]
[344795530,1733789440769,-1000.0,0.00016437,10]
[344795531,1733789440778,-500.0,0.00016437,2]
[344795532,1733789440789,-500.0,0.00016437,2]
[344795533,1733789440798,-500.0,0.00016437,2]
[344795534,1733789440808,-500.0,0.00016437,2]
[344795535,1733789440818,-279.37,0.00016437,2]
[344795536,1733789440828,-543.51,0.00016437,2]
[344795537,1733789440839,-500.0,0.00016437,2]
[344795538,1733789440850,-1941.05,0.00016437,2]
[344795539,1733789440860,-709.06,0.00016437,2]
[344795540,1733789440871,-500.0,0.00016437,2]
[344795541,1733789440881,-500.0,0.00016437,2]
[344795542,1733789440890,-500.0,0.00016437,2]
[344795543,1733789440899,-944.73,0.00016437,2]
[344795544,1733789440909,-500.0,0.00016437,2]
[344795545,1733789440924,-273.88944163,0.00016437,2]
[344795546,1733789440934,-500.0,0.00016437,2]
[344795547,1733789440944,-500.0,0.00016437,2]
[344795548,1733789440954,-31.25486377,0.00016437,2]
[344795549,1733789441502,-381.14879663,0.00011073,2]
[344795550,1733789441513,-500.0,0.00013699,2]
[344795551,1733789441522,-578.29172622,0.00013699,2]
[344795552,1733789441532,-551.20170659,0.00014247,2]
[344795553,1733789441548,-133.34743793,0.00014247,2]
[344795554,1733789441558,-746.8,0.00016436,2]
[344795555,1733789441568,-281.33236967,0.00016437,2]
[344795556,1733789441580,-229.73471597,0.00016437,2]
[344795557,1733789441590,-306.32027558,0.00016437,2]
[344795558,1733789441600,-224.67651009,0.00016437,2]
[344795559,1733789441610,-257.30587983,0.00016437,2]
[344795560,1733789441623,-242.69412017,0.00016437,2]
[344795561,1733789441632,-473.03387069,0.00016437,2]
[344795562,1733789441643,-237.66451628,0.00016437,2]
[344795563,1733789441652,-401.62,0.00016438,2]
[344795564,1733789441662,-401.62,0.00016438,2]
[344795565,1733789441675,-272.43255785,0.00016438,2]
[344795566,1733789441718,-264.339999,0.00016437,2]
[344795567,1733789441853,-1098.0,0.00012257,2]
[344795568,1733789441863,-235.660001,0.00016437,2]
[344795569,1733789441873,-1418.40744215,0.00016438,2]
[344795570,1733789441884,-662.93255685,0.00016438,2]
[344795571,1733789441896,-1027.90744315,0.00016438,2]
[344795572,1733789441906,-1690.84,0.00016438,2]
[344795573,1733789441919,-1690.84,0.00016438,2]
[344795574,1733789441929,-1690.84,0.00016438,2]
[344795575,1733789441939,-1690.84,0.00016438,2]
[344795576,1733789441949,-1601.29635985,0.00016438,2]
[344795577,1733789441961,-89.54364015,0.00016438,2]
[344795578,1733789441972,-1690.84,0.00016438,2]
[344795579,1733789441985,-1690.84,0.00016438,2]
[344795580,1733789441994,-1690.84,0.00016438,2]
[344795581,1733789442004,-1690.84,0.00016438,2]
[344795582,1733789442014,-1690.84,0.00016438,2]
[344795583,1733789442023,-1690.84,0.00016438,2]
[344795584,1733789442033,-1690.84,0.00016438,2]
[344795585,1733789442043,-1690.84,0.00016438,2]
[344795586,1733789442052,-1690.84,0.00016438,2]
[344795587,1733789442064,-1690.84,0.00016438,2]
[344795588,1733789442074,-1690.84,0.00016438,2]
[344795589,1733789442084,-1690.84,0.00016438,2]
[344795590,1733789442094,-1690.84,0.00016438,2]
[344795591,1733789442104,-1690.84,0.00016438,2]
[344795592,1733789442114,-1690.84,0.00016438,2]
[344795593,1733789442123,-1690.84,0.00016438,2]
[344795594,1733789442133,-1690.94595185,0.00016438,2]
[344795595,1733789442143,-4355.95,0.00016438,2]
[344795596,1733789442153,-4355.95,0.00016438,2]
[344795597,1733789442163,-4355.95,0.00016438,2]
[344795598,1733789442180,-4355.95,0.00016438,2]
[344795599,1733789442190,-1000.0,0.00016438,2]
[344795600,1733789442199,-1000.0,0.00016438,2]
[344795601,1733789442209,-1000.0,0.00016438,2]
[344795602,1733789442219,-1000.0,0.00016438,2]
[344795603,1733789442229,-1000.0,0.00016438,2]
[344795604,1733789442238,-1000.0,0.00016438,2]
[344795605,1733789442247,-1000.0,0.00016438,2]
[344795606,1733789442257,-1000.0,0.00016438,2]
[344795607,1733789442268,-1000.0,0.00016438,2]
[344795608,1733789442278,-1000.0,0.00016438,2]
[344795609,1733789442287,-1000.0,0.00016438,2]
[344795611,1733789442297,-1000.0,0.00016438,2]
[344795612,1733789442307,-1000.0,0.00016438,2]
[344795614,1733789442316,-240.0533632,0.00016438,2]
[344795628,1733789442725,-1098.0,0.00015257,2]
[344795629,1733789442736,-759.9466368,0.00016438,2]
[344795630,1733789442746,-1000.0,0.00016438,2]
[344795631,1733789442755,-1000.0,0.00016438,2]
[344795632,1733789442764,-157.6986775,0.00016438,2]
[344795633,1733789442883,-842.3013225,0.00016438,2]
[344795634,1733789442893,-1000.0,0.00016438,2]
[344795635,1733789442903,-1000.0,0.00016438,2]
[344795636,1733789442912,-1000.0,0.00016438,2]
[344795637,1733789442928,-1000.0,0.00016438,2]
[344795638,1733789442937,-1000.0,0.00016438,2]
[344795639,1733789442947,-1000.0,0.00016438,2]
[344795640,1733789442969,-1000.0,0.00016438,2]
[344795641,1733789442980,-1000.0,0.00016438,2]
[344795642,1733789442990,-1000.0,0.00016438,2]
[344795643,1733789442999,-1000.0,0.00016438,2]
[344795644,1733789443007,-1000.0,0.00016438,2]
[344795645,1733789443017,-1000.0,0.00016438,2]
[344795646,1733789443026,-1000.0,0.00016438,2]
[344795647,1733789443035,-164.0,0.00016438,2]
[344795648,1733789443043,-150.0,0.00016438,2]
[344795649,1733789443054,-300.0,0.00016522,2]
[344795650,1733789443065,-500.0,0.00016616,2]
[344795651,1733789443075,-1404.15,0.00016658,30]
[344795652,1733789443084,-188.55,0.00016712,2]
[344795653,1733789443094,-296.95,0.00016895,2]
[344795655,1733789443103,-1400.0,0.000169,6]
[344795657,1733789443113,-150.0,0.00016914,2]
[344795658,1733789443123,-500.0,0.00016963,2]
[344795659,1733789443132,-500.0,0.00016963,2]
[344795660,1733789443141,-758.94,0.00016963,2]
[344795661,1733789443151,-550.3,0.00016963,2]
[344795662,1733789443161,-1000.0,0.00016963,2]
[344795663,1733789443174,-1000.0,0.00016999,2]
[344795664,1733789443184,-550.0,0.00017,2]
[344795665,1733789443194,-331.12768815,0.00017,2]
[344795672,1733789445468,-331.27025021,0.00016437,2]
[344795674,1733789527275,-169.0641694,0.00016437,2]
[344795675,1733789527286,-800.0,0.00017,2]
[344795676,1733789527297,-800.0,0.00017,2]
[344795677,1733789527308,-800.0,0.00017,2]
[344795678,1733789527318,-800.0,0.00017,2]
[344795679,1733789527328,-800.0,0.00017,2]
[344795680,1733789527338,-800.0,0.00017,2]
[344795681,1733789527348,-35.4367306,0.00017123,2]
[344795682,1733789527360,-214.5632694,0.00017123,2]
[344795683,1733789527369,-974.74,0.00017499,2]
[344795684,1733789527379,-974.74,0.00017499,2]
[344795685,1733789527389,-1600.0,0.00017534,2]
[344795686,1733789527400,-1019.65,0.000176,2]
[344795687,1733789527409,-157.99,0.00017743,2]
[344795688,1733789527419,-350.0,0.00017808,2]
[344795689,1733789527428,-500.0,0.00017856,2]
[344795690,1733789527439,-1600.0,0.00018183,2]
[344795691,1733789527449,-150.0,0.00018257,2]
[344795692,1733789527460,-13721.0,0.00018257,2]
[344795693,1733789527470,-5966.0,0.00018257,2]
[344795694,1733789527480,-1167.0,0.00018257,2]
[344795695,1733789527490,-1098.0,0.00018257,2]
[344795696,1733789527509,-500.0,0.00018259,2]
[344795697,1733789527519,-552.10470257,0.00018259,2]
[344795698,1733789527530,-608.59,0.00018355,2]